fUST/lending_fUST_20250801
["ID","MTS","AMOUNT","RATE_DAILY","PERIOD"]
[376563976,1754025041861,-766.98,0.00022041,2]
[376563977,1754025041870,-151.0,0.00022041,7]
[376563978,1754025041879,-151.0,0.00022041,7]
[376563979,1754025041889,-335.90144641,0.00022097,2]
[376563980,1754025041898,-500.0,0.00022131,2]
[376563981,1754025041907,-929.34,0.00022174,2]
[376563982,1754025041916,-1922.81,0.00022281,2]
[376563983,1754025041925,-460.0,0.00022281,2]
[376563984,1754025041935,-681.07,0.00022281,2]
[376563985,1754025041944,-551.93,0.00022282,2]
[376563986,1754025041953,-207.253912,0.00022285,7]
[376563987,1754025041963,-168.0,0.00022304,2]
[376563988,1754025041972,-1016.84,0.00022311,2]
[376563989,1754025041983,-1020.33,0.00022311,2]
[376563990,1754025041992,-1560.02,0.00022311,2]
[376563991,1754025042001,-651.84,0.00022311,2]
[376563992,1754025042011,-660.87,0.00022311,2]
[376563993,1754025042020,-460.0,0.00022311,2]
[376563994,1754025042031,-460.0,0.00022311,2]
[376563995,1754025042041,-957.08,0.00022311,2]
[376563996,1754025042052,-581.53,0.00022312,2]
[376563997,1754025042061,-460.0,0.00022312,2]
[376563998,1754025042071,-151.0,0.00022312,7]
[376563999,1754025042080,-941.98,0.00022312,2]
[376564000,1754025042089,-697.67,0.00022312,2]
[376564001,1754025042098,-415.842854,0.00022312,7]
[376564002,1754025042107,-415.842854,0.00022312,7]
[376564003,1754025042117,-656.95,0.00022313,2]
[376564004,1754025042126,-478.5,0.00022313,2]
[376564005,1754025042136,-460.0,0.00022313,2]
[376564006,1754025042145,-766.98,0.00022315,2]
[376564007,1754025042155,-2000.0,0.00022316,2]
[376564008,1754025042164,-151.0,0.00022328,7]
[376564009,1754025042173,-151.706462,0.00022328,7]
[376564010,1754025042185,-151.459799,0.00022328,7]
[376564011,1754025042195,-151.459799,0.00022328,7]
[376564012,1754025042206,-151.0,0.00022328,7]
[376564013,1754025042217,-172.730279,0.00022328,7]
[376564014,1754025042226,-151.0,0.00022328,7]
[376564015,1754025042236,-151.0,0.00022328,7]
[376564016,1754025042246,-151.0,0.00022328,7]
[376564017,1754025042256,-151.0,0.00022328,7]
[376564018,1754025042266,-151.0,0.00022328,7]
[376564019,1754025042275,-151.0,0.00022328,7]
[376564020,1754025042285,-151.0,0.00022328,7]
[376564021,1754025042294,-151.0,0.00022328,7]
[376564022,1754025042303,-244.657523,0.00022328,7]
[376564023,1754025042313,-244.657523,0.00022328,7]
[376564024,1754025042323,-151.0,0.00022328,7]
[376564025,1754025042332,-151.0,0.00022328,7]
[376564026,1754025042341,-151.0,0.00022328,7]
[376564027,1754025042351,-207.316875,0.00022328,7]
[376564028,1754025042360,-207.316875,0.00022328,7]
[376564029,1754025042369,-380.824437,0.00022328,7]
[376564030,1754025042378,-380.824437,0.00022328,7]
[376564031,1754025042387,-426.048569,0.00022328,7]
[376564032,1754025042396,-841.53699354,0.00022328,2]
[376564033,1754025042406,-12644.26590849,0.00022328,2]
[376564034,1754025042415,-160.0,0.00022328,2]
[376564035,1754025042424,-526.925583,0.00022328,2]
[376564036,1754025042434,-216.22890603,0.00022328,2]
[376564037,1754025042443,-160.0,0.00022328,2]
[376564038,1754025042452,-160.0,0.00022328,2]
[376564039,1754025042464,-151.0,0.00022405,7]
[376564040,1754025042474,-151.0,0.00022405,7]
[376564041,1754025042483,-888.779354,0.00022405,7]
[376564042,1754025042493,-888.779354,0.00022405,7]
[376564043,1754025042504,-151.0,0.00022405,7]
[376564044,1754025042514,-271.260571,0.00022405,7]
[376564045,1754025042523,-212.2,0.00022429,4]
[376564046,1754025042533,-929.34,0.00022448,2]
[376564047,1754025042543,-534.0,0.00022459,2]
[376564048,1754025042552,-360.0,0.00022482,2]
[376564049,1754025042562,-420.0,0.00022488,2]
[376564050,1754025042571,-197.03,0.000225,2]
[376564051,1754025042581,-151.0,0.00022507,7]
[376564052,1754025042590,-212.55667,0.00022507,7]
[376564053,1754025042599,-212.55667,0.00022507,7]
[376564054,1754025042608,-151.0,0.00022507,7]
[376564055,1754025042617,-1072.64106257,0.00022533,2]
[376564056,1754025042627,-1922.81,0.00022555,2]
[376564057,1754025042636,-460.0,0.00022555,2]
[376564058,1754025042645,-681.07,0.00022555,2]
[376564059,1754025042654,-551.93,0.00022556,2]
[376564060,1754025042664,-583.0,0.00022559,2]
[376564061,1754025042673,-151.0,0.00022559,2]
[376564062,1754025042682,-151.0,0.00022573,7]
[376564063,1754025042692,-1626.62,0.00022574,2]
[376564064,1754025042701,-1016.84,0.00022585,2]
[376564065,1754025042711,-1020.33,0.00022585,2]
[376564066,1754025042720,-1560.02,0.00022585,2]
[376564067,1754025042730,-651.84,0.00022585,2]
[376564068,1754025042739,-660.87,0.00022585,2]
[376564069,1754025042748,-460.0,0.00022585,2]
[376564070,1754025042757,-460.0,0.00022585,2]
[376564071,1754025042766,-957.08,0.00022585,2]
[376564072,1754025042775,-2065.54329746,0.00022586,2]
[376564073,1754025042785,-941.98,0.00022586,2]
[376564074,1754025042794,-151.0,0.00022586,7]
[376564075,1754025042802,-697.67,0.00022586,2]
[376564076,1754025042811,-656.95,0.00022587,2]
[376564077,1754025042820,-478.5,0.00022587,2]
[376564078,1754025042829,-460.0,0.00022587,2]
[376564079,1754025042838,-766.98,0.00022589,2]
[376564080,1754025042847,-151.0,0.00022589,7]
[376564081,1754025042857,-151.0,0.00022589,7]
[376564082,1754025042866,-151.0,0.0002259,7]
[376564083,1754025042874,-415.842854,0.0002259,7]
[376564084,1754025042883,-415.842854,0.0002259,7]
[376564085,1754025042893,-151.0,0.00022716,7]
[376564086,1754025042902,-151.0,0.00022716,7]
[376564087,1754025042911,-151.0,0.00022716,7]
[376564088,1754025042921,-534.0,0.00022716,2]
[376564089,1754025042930,-154.994934,0.00022718,5]
[376564090,1754025042940,-929.34,0.00022722,2]
[376564091,1754025042950,-151.0,0.00022761,7]
[376564092,1754025042959,-151.0,0.00022761,7]
[376564093,1754025042967,-534.0,0.00022777,2]
[376564094,1754025042977,-254.2110556,0.00022781,2]
[376564095,1754025042986,-1922.81,0.00022829,2]
[376564096,1754025042995,-460.0,0.00022829,2]
[376564097,1754025043004,-681.07,0.00022829,2]
[376564098,1754025043013,-551.93,0.0002283,2]
[376564099,1754025043022,-583.0,0.00022833,2]
[376564100,1754025043032,-1016.84,0.00022859,2]
[376564101,1754025043041,-1020.33,0.00022859,2]
[376564102,1754025043050,-1560.02,0.00022859,2]
[376564103,1754025043059,-651.84,0.00022859,2]
[376564104,1754025043068,-660.87,0.00022859,2]
[376564105,1754025043077,-460.0,0.00022859,2]
[376564106,1754025043086,-460.0,0.00022859,2]
[376564107,1754025043096,-957.08,0.00022859,2]
[376564108,1754025043105,-941.98,0.0002286,2]
[376564109,1754025043114,-697.67,0.0002286,2]
[376564110,1754025043123,-656.95,0.00022861,2]
[376564111,1754025043132,-478.5,0.00022861,2]
[376564112,1754025043142,-460.0,0.00022861,2]
[376564113,1754025043152,-766.98,0.00022863,2]
[376564114,1754025043161,-215.00592538,0.00022864,2]
[376564115,1754025043171,-151.0,0.00022869,7]
[376564116,1754025043180,-207.316875,0.00022869,7]
[376564117,1754025043190,-207.316875,0.00022869,7]
[376564118,1754025043200,-151.34616234,0.00022873,2]
[376564119,1754025043209,-765.34117518,0.00022875,2]
[376564120,1754025043219,-800.0,0.00022875,2]
[376564121,1754025043230,-168.0,0.00022876,2]
[376564122,1754025043240,-154.994934,0.00022878,2]
[376564123,1754025043250,-151.0,0.00022879,7]
[376564124,1754025043260,-151.459799,0.00022879,7]
[376564125,1754025043270,-151.459799,0.00022879,7]
[376564126,1754025043279,-151.0,0.00022879,7]
[376564128,1754025043288,-172.730279,0.00022879,7]
[376564130,1754025043297,-151.0,0.00022879,7]
[376564131,1754025043306,-151.0,0.00022879,7]
[376564132,1754025043316,-151.0,0.00022879,7]
[376564133,1754025043325,-151.0,0.00022879,7]
[376564134,1754025043334,-168.0,0.00022883,2]
[376564135,1754025043343,-212.2,0.00022883,5]
[376564136,1754025043352,-151.0,0.00022886,7]
[376564137,1754025043361,-151.0,0.00022886,7]
[376564138,1754025043370,-151.0,0.00022886,7]
[376564139,1754025043379,-244.657523,0.00022886,7]
[376564140,1754025043388,-244.657523,0.00022886,7]
[376564141,1754025043397,-205.302675,0.00022886,7]
[376564142,1754025043406,-151.0,0.00022886,7]
[376564143,1754025043415,-380.824437,0.00022886,7]
[376564144,1754025043425,-380.824437,0.00022886,7]
[376564145,1754025043434,-426.048569,0.00022886,7]
[376564146,1754025043444,-168.0,0.00022896,2]
[376564147,1754025043453,-151.0,0.00022899,7]
[376564148,1754025043465,-151.0,0.00022899,7]
[376564149,1754025043474,-56895.22967357,0.000229,7]
[376564150,1754025043484,-1916.93,0.000229,7]
[376564151,1754025043494,-152.082524,0.000229,7]
[376564153,1754025043504,-151.0,0.000229,7]
[376564155,1754025043513,-151.0,0.000229,7]
[376564157,1754025043524,-198.107126,0.000229,7]
[376564159,1754025043534,-194.621938,0.000229,7]
[376564161,1754025043544,-194.621938,0.000229,7]
[376564163,1754025043553,-151.0,0.000229,7]
[376564165,1754025043563,-237.7318,0.000229,7]
[376564167,1754025043572,-151.70559,0.000229,7]
[376564169,1754025043581,-151.0,0.000229,7]
[376564171,1754025043590,-151.0,0.000229,7]
[376564173,1754025043599,-151.0,0.000229,7]
[376564175,1754025043608,-151.0,0.000229,7]
[376564177,1754025043618,-151.0,0.000229,7]
[376564179,1754025043628,-151.0,0.000229,7]
[376564191,1754025043727,-151.459799,0.000229,7]
[376564193,1754025043737,-151.459799,0.000229,7]
[376564195,1754025043746,-151.0,0.000229,7]
[376564197,1754025043756,-888.779354,0.000229,7]
[376564199,1754025043765,-888.779354,0.000229,7]
[376564201,1754025043774,-172.730279,0.000229,7]
[376564203,1754025043784,-172.730279,0.000229,7]
[376564205,1754025043794,-151.0,0.000229,7]
[376564207,1754025043803,-151.0,0.000229,7]
[376564209,1754025043813,-153.363331,0.000229,7]
[376564211,1754025043822,-151.0,0.000229,7]
[376564213,1754025043832,-151.0,0.000229,7]
[376564215,1754025043841,-151.0,0.000229,7]
[376564217,1754025043850,-151.0,0.000229,7]
[376564219,1754025043859,-151.0,0.000229,7]
[376564221,1754025043868,-151.0,0.000229,7]
[376564223,1754025043878,-151.0,0.000229,7]
[376564225,1754025043887,-244.657523,0.000229,7]
[376564227,1754025043897,-244.657523,0.000229,7]
[376564229,1754025043907,-160.0,0.000229,7]
[376564231,1754025043917,-151.0,0.000229,7]
[376564233,1754025043927,-151.0,0.000229,7]
[376564235,1754025043936,-212.55667,0.000229,7]
[376564237,1754025043945,-212.55667,0.000229,7]
[376564239,1754025043955,-212.55667,0.000229,7]
[376564241,1754025043965,-212.55667,0.000229,7]
[376564243,1754025043976,-151.0,0.000229,7]
[376564245,1754025043989,-151.0,0.000229,7]
[376564247,1754025043998,-207.316875,0.000229,7]
[376564249,1754025044007,-207.316875,0.000229,7]
[376564251,1754025044016,-380.824437,0.000229,7]
[376564253,1754025044025,-151.0,0.000229,7]
[376564255,1754025044034,-380.824437,0.000229,7]
[376564257,1754025044044,-645.0,0.000229,2]
[376564258,1754025044054,-151.0,0.000229,7]
[376564261,1754025044063,-151.0,0.000229,7]
[376564263,1754025044072,-151.0,0.000229,7]
[376564264,1754025044082,-151.0,0.000229,7]
[376564266,1754025044091,-415.842854,0.000229,7]
[376564267,1754025044100,-415.842854,0.000229,7]
[376564269,1754025044109,-426.048569,0.000229,7]
[376564271,1754025044119,-564.59403786,0.00022904,2]
[376564273,1754025044128,-183.84675522,0.00022904,2]
[376564275,1754025044136,-168.0,0.00022923,2]
[376564277,1754025044146,-800.0,0.0002295,2]
[376564279,1754025044156,-208.029015,0.00022962,2]
[376564281,1754025044165,-500.0,0.00022973,2]
[376564283,1754025044174,-929.34,0.00022996,2]
[376564285,1754025044183,-154.994934,0.00022999,4]
[376564287,1754025044193,-9810.06450645,0.00023,2]
[376564289,1754025044202,-35896.67567268,0.00023,15]
[376564292,1754025044224,-2721.37741689,0.00023,15]
[376564295,1754025044235,-7068.58636822,0.00023,15]
[376564297,1754025044246,-19674.66926132,0.00023,15]
[376564299,1754025044258,-409.36086168,0.00023,15]
[376564323,1754025044466,-42001.81476363,0.00023,15]
[376564325,1754025044478,-15375.095,0.00023,15]
[376564342,1754025044634,-803.58003531,0.00023,15]
[376564345,1754025044646,-933.24475225,0.00023,15]
[376564347,1754025044657,-668.09318468,0.00023,15]
[376564350,1754025044673,-24034.02514856,0.00023,15]
[376564352,1754025044683,-31866.06756344,0.00023,2]
[376564354,1754025044696,-21224.10479495,0.00023,2]
[376564356,1754025044705,-1338.11216998,0.00023,2]
[376564358,1754025044715,-35141.70843363,0.00023,2]
[376564367,1754025044794,-151.0,0.00021459,2]
[376564369,1754025044804,-426.048569,0.00021736,2]
[376564371,1754025044813,-426.048569,0.00022328,7]
[376564373,1754025044823,-426.048569,0.00022886,7]
[376564375,1754025044832,-426.048569,0.000229,7]
[376564377,1754025044841,-3003.14156637,0.00023,2]
[376564379,1754025044851,-2000.0,0.00023,7]
[376564381,1754025044860,-1500.0,0.00023,5]
[376564383,1754025044869,-193.59946653,0.00023,2]
[376564385,1754025044879,-11301.15,0.00023,7]
[376564387,1754025044888,-3212.34,0.00023,7]
[376564389,1754025044897,-151.0,0.00023,7]
[376564391,1754025044907,-151.0,0.00023,7]
[376564393,1754025044916,-151.0,0.00023,7]
[376564395,1754025044927,-154.34323,0.00023,7]
[376564397,1754025044936,-151.0,0.00023,7]
[376564399,1754025044946,-151.0,0.00023,7]
[376564401,1754025044955,-151.0,0.00023,7]
[376564403,1754025044964,-159.819611,0.00023,7]
[376564405,1754025044973,-151.0,0.00023,7]
[376564407,1754025044982,-160.0,0.00023,2]
[376564409,1754025044993,-194.621938,0.00023,7]
[376564411,1754025045002,-194.621938,0.00023,7]
[376564413,1754025045011,-194.621938,0.00023,7]
[376564415,1754025045021,-194.621938,0.00023,7]
[376564417,1754025045030,-151.0,0.00023,7]
[376564419,1754025045039,-177.873736,0.00023,7]
[376564421,1754025045049,-151.0,0.00023,7]
[376564423,1754025045058,-151.0,0.00023,7]
[376564425,1754025045067,-151.0,0.00023,7]
[376564427,1754025045077,-151.0,0.00023,7]
[376564429,1754025045086,-151.0,0.00023,7]
[376564431,1754025045095,-151.0,0.00023,7]
[376564433,1754025045104,-151.0,0.00023,7]
[376564435,1754025045113,-151.0,0.00023,7]
[376564437,1754025045123,-151.0,0.00023,7]
[376564439,1754025045132,-151.459799,0.00023,7]
[376564441,1754025045141,-151.459799,0.00023,7]
[376564443,1754025045151,-151.459799,0.00023,7]
[376564445,1754025045162,-151.459799,0.00023,7]
[376564447,1754025045171,-153.442753,0.00023,7]
[376564449,1754025045180,-633.94741438,0.00023,7]
[376564451,1754025045193,-254.83193962,0.00023,7]
[376564453,1754025045203,-888.779354,0.00023,7]
[376564455,1754025045212,-888.779354,0.00023,7]
[376564458,1754025045222,-888.779354,0.00023,7]
[376564459,1754025045232,-172.730279,0.00023,7]
[376564462,1754025045241,-172.730279,0.00023,7]
[376564464,1754025045251,-172.730279,0.00023,7]
[376564466,1754025045260,-172.730279,0.00023,7]
[376564468,1754025045270,-151.0,0.00023,7]
[376564470,1754025045279,-151.0,0.00023,7]
[376564472,1754025045288,-151.0,0.00023,7]
[376564474,1754025045297,-151.0,0.00023,7]
[376564476,1754025045306,-151.0,0.00023,7]
[376564478,1754025045316,-193.990144,0.00023,7]
[376564480,1754025045325,-151.0,0.00023,7]
[376564482,1754025045334,-151.0,0.00023,7]
[376564484,1754025045343,-151.0,0.00023,7]
[376564486,1754025045352,-252.892275,0.00023,7]
[376564488,1754025045361,-151.0,0.00023,7]
[376564490,1754025045371,-151.0,0.00023,7]
[376564492,1754025045380,-151.0,0.00023,7]
[376564494,1754025045388,-162.262857,0.00023,7]
[376564496,1754025045397,-151.0,0.00023,7]
[376564498,1754025045407,-151.0,0.00023,7]
[376564500,1754025045416,-152.833512,0.00023,7]
[376564502,1754025045425,-244.657523,0.00023,7]
[376564504,1754025045434,-244.657523,0.00023,7]
[376564506,1754025045443,-244.657523,0.00023,7]
[376564508,1754025045452,-244.657523,0.00023,7]
[376564510,1754025045465,-160.0,0.00023,7]
[376564512,1754025045478,-151.0,0.00023,7]
[376564513,1754025045488,-151.0,0.00023,7]
[376564515,1754025045497,-189.97363,0.00023,2]
[376564517,1754025045508,-151.0,0.00023,7]
[376564519,1754025045517,-283.837474,0.00023,7]
[376564521,1754025045526,-212.55667,0.00023,7]
[376564523,1754025045539,-212.55667,0.00023,7]
[376564525,1754025045548,-212.55667,0.00023,7]
[376564527,1754025045557,-212.55667,0.00023,7]
[376564529,1754025045566,-133.46197257,0.00023,7]
[376564532,1754025045578,-17.53802743,0.00023,7]
[376564534,1754025045588,-291.950958,0.00023,7]
[376564536,1754025045597,-35.46429265,0.00023,7]
[376564538,1754025045609,-171.85258235,0.00023,7]
[376564540,1754025045618,-207.316875,0.00023,7]
[376564541,1754025045627,-207.316875,0.00023,7]
[376564542,1754025045637,-207.316875,0.00023,7]
[376564543,1754025045646,-380.824437,0.00023,7]
[376564544,1754025045655,-380.824437,0.00023,7]
[376564545,1754025045664,-151.0,0.00023,7]
[376564546,1754025045673,-151.0,0.00023,7]
[376564547,1754025045682,-380.824437,0.00023,7]
[376564548,1754025045691,-380.824437,0.00023,7]
[376564549,1754025045702,-151.0,0.00023,7]
[376564550,1754025045711,-156.027168,0.00023,7]
[376564551,1754025045720,-151.0,0.00023,7]
[376564552,1754025045729,-151.0,0.00023,7]
[376564553,1754025045738,-151.0,0.00023,7]
[376564554,1754025045747,-151.0,0.00023,7]
[376564555,1754025045756,-151.0,0.00023,7]
[376564556,1754025045766,-151.0,0.00023,7]
[376564557,1754025045775,-415.842854,0.00023,7]
[376564558,1754025045784,-415.842854,0.00023,7]
[376564559,1754025045793,-415.842854,0.00023,7]
[376564560,1754025045802,-415.842854,0.00023,7]
[376564562,1754025045812,-426.048569,0.00023,7]
[376564564,1754025045821,-426.048569,0.00023,7]
[376564566,1754025045830,-426.048569,0.00023,7]
[376564568,1754025045840,-179.0,0.00023014,7]
[376564570,1754025045849,-460.0,0.0002303,2]
[376564572,1754025045858,-168.0,0.00023101,2]
[376564574,1754025045867,-1922.81,0.00023103,2]
[376564575,1754025045877,-460.0,0.00023103,2]
[376564576,1754025045887,-681.07,0.00023103,2]
[376564577,1754025045896,-551.93,0.00023104,2]
[376564578,1754025045992,-583.0,0.00023107,2]
[376564579,1754025046002,-1016.84,0.00023133,2]
[376564580,1754025046011,-1020.33,0.00023133,2]
[376564581,1754025046021,-1560.02,0.00023133,2]
[376564582,1754025046031,-651.84,0.00023133,2]
[376564583,1754025046041,-660.87,0.00023133,2]
[376564584,1754025046050,-460.0,0.00023133,2]
[376564585,1754025046060,-460.0,0.00023133,2]
[376564586,1754025046070,-957.08,0.00023133,2]
[376564587,1754025046079,-941.98,0.00023134,2]
[376564588,1754025046088,-697.67,0.00023134,2]
[376564589,1754025046098,-656.95,0.00023135,2]
[376564590,1754025046108,-95.11310706,0.00023135,2]
[376564591,1754025046120,-383.38689294,0.00023135,2]
[376564592,1754025046129,-460.0,0.00023135,2]
[376564594,1754025046139,-766.98,0.00023137,2]
[376564595,1754025046148,-200.0,0.0002314,15]
[376564596,1754025046159,-200.0,0.0002314,15]
[376564597,1754025046168,-76.48659396,0.0002314,15]
[376564598,1754025046180,-123.51340604,0.0002314,15]
[376564599,1754025046189,-200.0,0.0002314,15]
[376564600,1754025046199,-200.0,0.0002314,15]
[376564601,1754025046208,-200.0,0.0002314,15]
[376564602,1754025046218,-200.0,0.0002314,15]
[376564603,1754025046228,-238.0,0.00023145,2]
[376564604,1754025046237,-1626.62,0.00023147,2]
[376564605,1754025046247,-500.0,0.00023227,2]
[376564606,1754025046256,-185.3710818,0.0002327,2]
[376564607,1754025046268,-743.9689182,0.0002327,2]
[376564608,1754025046277,-500.0,0.00023287,2]
[376564609,1754025046286,-151.0,0.00023288,7]
[376564610,1754025046295,-212.2,0.00023337,5]
[376564611,1754025046304,-154.994934,0.00023352,6]
[376564613,1754025046313,-1922.81,0.00023377,2]
[376564615,1754025046322,-460.0,0.00023377,2]
[376564617,1754025046332,-681.07,0.00023377,2]
[376564620,1754025046342,-1072.64106257,0.00023378,2]
[376564622,1754025046352,-551.93,0.00023378,2]
[376564624,1754025046361,-583.0,0.00023381,2]
[376564626,1754025046371,-1016.84,0.00023407,2]
[376564628,1754025046380,-1020.33,0.00023407,2]
[376564630,1754025046389,-1560.02,0.00023407,2]
[376564632,1754025046398,-651.84,0.00023407,2]
[376564634,1754025046407,-660.87,0.00023407,2]
[376564636,1754025046416,-460.0,0.00023407,2]
[376564638,1754025046426,-460.0,0.00023407,2]
[376564640,1754025046435,-151.0,0.00023407,7]
[376564642,1754025046445,-957.08,0.00023407,2]
[376564644,1754025046454,-151.0,0.00023408,7]
[376564646,1754025046466,-941.98,0.00023408,2]
[376564648,1754025046476,-207.316875,0.00023408,7]
[376564650,1754025046485,-207.316875,0.00023408,7]
[376564652,1754025046494,-58.87249923,0.00023408,7]
[376564654,1754025046506,-92.12750077,0.00023408,7]
[376564656,1754025046515,-156.400771,0.00023408,7]
[376564658,1754025046525,-151.0,0.00023408,7]
[376564660,1754025046534,-264.33555658,0.00023408,2]
[376564662,1754025046546,-433.33444342,0.00023408,2]
[376564665,1754025046556,-415.842854,0.00023408,7]
[376564667,1754025046566,-415.842854,0.00023408,7]
[376564669,1754025046576,-999.0,0.00023408,4]
[376564671,1754025046585,-194.653461,0.00023409,7]
[376564672,1754025046594,-151.459799,0.00023409,7]
[376564675,1754025046603,-151.459799,0.00023409,7]
[376564677,1754025046612,-172.730279,0.00023409,7]
[376564679,1754025046621,-172.730279,0.00023409,7]
[376564680,1754025046630,-151.0,0.00023409,7]
[376564683,1754025046640,-151.0,0.00023409,7]
[376564684,1754025046649,-151.0,0.00023409,7]
[376564687,1754025046659,-151.0,0.00023409,7]
[376564689,1754025046668,-244.657523,0.00023409,7]
[376564691,1754025046677,-244.657523,0.00023409,7]
[376564692,1754025046686,-212.55667,0.00023409,7]
[376564695,1754025046695,-212.55667,0.00023409,7]
[376564697,1754025046705,-656.95,0.00023409,2]
[376564699,1754025046715,-380.824437,0.00023409,7]
[376564701,1754025046724,-380.824437,0.00023409,7]
[376564703,1754025046733,-478.5,0.00023409,2]
[376564705,1754025046742,-460.0,0.00023409,2]
[376564707,1754025046752,-426.048569,0.00023409,7]
[376564709,1754025046761,-151.0,0.0002341,7]
[376564711,1754025046770,-888.779354,0.0002341,7]
[376564713,1754025046779,-888.779354,0.0002341,7]
[376564715,1754025046788,-766.98,0.00023411,2]
[376564717,1754025046797,-151.0,0.00023412,7]
[376564719,1754025046806,-153.766797,0.00023442,7]
[376564721,1754025046815,-151.0,0.00023442,7]
[376564723,1754025046824,-153.012701,0.00023442,7]
[376564725,1754025046834,-151.0,0.00023442,7]
[376564727,1754025046843,-194.621938,0.00023442,7]
[376564729,1754025046852,-194.621938,0.00023442,7]
[376564732,1754025046862,-151.0,0.00023442,7]
[376564734,1754025046871,-158.516323,0.00023442,7]
[376564736,1754025046880,-168.0,0.00023508,2]
[376564739,1754025046891,-507.39071748,0.00023521,2]
[376564742,1754025046900,-929.34,0.00023544,2]
[376564745,1754025046909,-200.0,0.00023561,2]
[376564748,1754025046917,-200.0,0.00023561,2]
[376564750,1754025046927,-323.30465435,0.00023561,2]
[376564752,1754025046936,-168.17756401,0.00023562,2]
[376564754,1754025046946,-560.0,0.00023577,2]
[376564756,1754025046955,-238.0,0.00023632,2]
[376564758,1754025046965,-430.3749276,0.00023644,2]
[376564760,1754025046975,-430.3749276,0.00023644,2]
[376564762,1754025046984,-430.3749276,0.00023644,2]
[376564764,1754025046993,-430.3749276,0.00023644,2]
[376564767,1754025047003,-1922.81,0.00023651,2]
[376564769,1754025047013,-460.0,0.00023651,2]
[376564770,1754025047023,-681.07,0.00023651,2]
[376564772,1754025047032,-551.93,0.00023652,2]
[376564774,1754025047041,-583.0,0.00023655,2]
[376564776,1754025047051,-1016.84,0.00023681,2]
[376564779,1754025047061,-1020.33,0.00023681,2]
[376564781,1754025047070,-1560.02,0.00023681,2]
[376564783,1754025047080,-651.84,0.00023681,2]
[376564784,1754025047089,-660.87,0.00023681,2]
[376564786,1754025047099,-460.0,0.00023681,2]
[376564788,1754025047109,-957.08,0.00023681,2]
[376564789,1754025047118,-941.98,0.00023682,2]
[376564790,1754025047127,-697.67,0.00023682,2]
[376564791,1754025047137,-656.95,0.00023683,2]
[376564792,1754025047146,-478.5,0.00023683,2]
[376564793,1754025047156,-460.0,0.00023683,2]
[376564794,1754025047166,-766.98,0.00023685,2]
[376564795,1754025047175,-1626.62,0.00023721,2]
[376564796,1754025047185,-5151.69505263,0.00023784,2]
[376564797,1754025047626,-413.44763862,0.0002094,2]
[376564798,1754025047637,-502.53559488,0.00022312,2]
[376564799,1754025047646,-502.53559488,0.00022312,2]
[376564800,1754025047655,-502.53559488,0.00022312,2]